[Event "Live Chess"]
[Site "Chess.com"]
[Date "2023.05.21"]
[Round "-"]
[White "jagbama"]
[Black "domrobson"]
[Result "1-0"]
[WhiteElo "1177"]
[BlackElo "1700"]
[TimeControl "300"]
[EndTime "3:13:48 PDT"]
[Termination "jagbama won by resignation"]

1. e4 {[%clk 0:04:59.2]} 1... e5 {[%clk 0:04:59.2]} 2. Nf3 {[%clk 0:04:58.9]}
2... Nc6 {[%clk 0:04:57.8]} 3. Bc4 {[%clk 0:04:58.3]} 3... Nf6 {[%clk
0:04:56.8]} 4. Nc3 {[%clk 0:04:56.8]} 4... Nxe4 {[%clk 0:04:54.5]} 5. Nxe4
{[%clk 0:04:55.8]} 5... d5 {[%clk 0:04:53.2]} 6. Bb5 {[%clk 0:04:54.8]} 6...
dxe4 {[%clk 0:04:51.9]} 7. Bxc6+ {[%clk 0:04:54]} 7... bxc6 {[%clk 0:04:50.6]}
8. Nxe5 {[%clk 0:04:53.4]} 8... Qd5 {[%clk 0:04:47.1]} 9. d4 {[%clk 0:04:52]}
9... exd3 {[%clk 0:04:44.8]} 10. Nxd3 {[%clk 0:04:48.9]} 10... Be7 {[%clk
0:04:40]} 11. O-O {[%clk 0:04:46.7]} 11... O-O {[%clk 0:04:38.6]} 12. Bf4 {[%clk
0:04:30.1]} 12... Bf5 {[%clk 0:04:34.5]} 13. Bxc7 {[%clk 0:04:25.4]} 13... Rac8
{[%clk 0:04:25.9]} 14. Bg3 {[%clk 0:04:23.5]} 14... Rfd8 {[%clk 0:04:23.7]} 15.
Qe2 {[%clk 0:04:17.1]} 15... Re8 {[%clk 0:04:19.6]} 16. Nf4 {[%clk 0:04:02.4]}
16... Qa5 {[%clk 0:04:08]} 17. Qf3 {[%clk 0:03:50.4]} 17... Bf6 {[%clk 0:03:57]}
18. c3 {[%clk 0:03:44.8]} 18... Be4 {[%clk 0:03:54]} 19. Qg4 {[%clk 0:03:36.8]}
19... Qb6 {[%clk 0:03:44.6]} 20. Nh5 {[%clk 0:03:30.7]} 20... Bg6 {[%clk
0:03:29.8]} 21. Nxf6+ {[%clk 0:03:21.7]} 21... gxf6 {[%clk 0:03:28.8]} 22. h4
{[%clk 0:03:09.6]} 22... Re4 {[%clk 0:03:26.4]} 23. Qxc8+ {[%clk 0:03:04.7]} 1-0

[Event "Live Chess"]
[Site "Chess.com"]
[Date "2023.05.21"]
[Round "-"]
[White "WilliamofOrange16th"]
[Black "maxmlynek"]
[Result "1-0"]
[WhiteElo "1875"]
[BlackElo "1902"]
[TimeControl "300"]
[EndTime "3:13:51 PDT"]
[Termination "WilliamofOrange16th won by resignation"]

1. e4 {[%clk 0:04:58.5]} 1... c6 {[%clk 0:04:59.1]} 2. d4 {[%clk 0:04:57.1]}
2... d5 {[%clk 0:04:51.7]} 3. exd5 {[%clk 0:04:57]} 3... cxd5 {[%clk 0:04:51.5]}
4. c4 {[%clk 0:04:56.3]} 4... dxc4 {[%clk 0:04:50.2]} 5. Bxc4 {[%clk 0:04:54.7]}
5... Nf6 {[%clk 0:04:49.6]} 6. Nf3 {[%clk 0:04:53.9]} 6... e6 {[%clk 0:04:48.9]}
7. O-O {[%clk 0:04:53]} 7... Nc6 {[%clk 0:04:48.2]} 8. Nc3 {[%clk 0:04:51.8]}
8... Bd7 {[%clk 0:04:47.6]} 9. h3 {[%clk 0:04:49.2]} 9... Be7 {[%clk 0:04:47]}
10. Bf4 {[%clk 0:04:46.5]} 10... O-O {[%clk 0:04:43.8]} 11. Nb5 {[%clk
0:04:45.6]} 11... a6 {[%clk 0:04:40.6]} 12. Nc3 {[%clk 0:04:43.5]} 12... Rc8
{[%clk 0:04:37.3]} 13. Bd3 {[%clk 0:04:40.9]} 13... Re8 {[%clk 0:04:33.7]} 14.
Rc1 {[%clk 0:04:39.4]} 14... Bf8 {[%clk 0:04:31.8]} 15. Bb1 {[%clk 0:04:38.2]}
15... Ne7 {[%clk 0:04:30.8]} 16. Qd3 {[%clk 0:04:36.4]} 16... Ng6 {[%clk
0:04:29.5]} 17. Be5 {[%clk 0:04:33.9]} 17... Bb5 {[%clk 0:04:19.9]} 18. Nxb5
{[%clk 0:04:31.3]} 18... axb5 {[%clk 0:04:19.2]} 19. Qxb5 {[%clk 0:04:25.9]}
19... Rxc1 {[%clk 0:04:16.4]} 20. Rxc1 {[%clk 0:04:25.8]} 20... Bd6 {[%clk
0:04:10.3]} 21. Qxb7 {[%clk 0:04:17.5]} 21... Bxe5 {[%clk 0:04:06.8]} 22. dxe5
{[%clk 0:04:16.9]} 22... Nd5 {[%clk 0:04:05.7]} 23. b4 {[%clk 0:04:02.9]} 23...
h6 {[%clk 0:03:59.2]} 24. Be4 {[%clk 0:03:56.3]} 24... Qb8 {[%clk 0:03:54.2]}
25. Qxb8 {[%clk 0:03:53.3]} 25... Rxb8 {[%clk 0:03:54.1]} 26. a3 {[%clk
0:03:49.2]} 26... Ngf4 {[%clk 0:03:48.1]} 27. Kf1 {[%clk 0:03:39.8]} 27... Ra8
{[%clk 0:03:37.2]} 28. g3 {[%clk 0:03:23.1]} 28... Nxh3 {[%clk 0:03:34]} 29.
Bxd5 {[%clk 0:03:21.2]} 29... exd5 {[%clk 0:03:33.1]} 30. Rc3 {[%clk 0:03:20.1]}
30... Ng5 {[%clk 0:03:28]} 31. Nxg5 {[%clk 0:03:19.1]} 31... hxg5 {[%clk
0:03:27.9]} 32. Ke2 {[%clk 0:03:18.3]} 32... Kf8 {[%clk 0:03:24.9]} 33. Kd3
{[%clk 0:03:17.8]} 33... Ke7 {[%clk 0:03:24.2]} 34. Kd4 {[%clk 0:03:17.4]} 34...
Ke6 {[%clk 0:03:23.7]} 35. g4 {[%clk 0:03:12.1]} 35... Ra6 {[%clk 0:03:19.1]}
36. b5 {[%clk 0:03:11.1]} 36... Ra4+ {[%clk 0:03:17.7]} 37. Kc5 {[%clk
0:03:07.5]} 37... Kxe5 {[%clk 0:03:15.4]} 38. b6 {[%clk 0:03:04.7]} 38... d4
{[%clk 0:03:08.7]} 39. Rb3 {[%clk 0:03:00.5]} 39... Ra5+ {[%clk 0:03:04]} 40.
Kc6 {[%clk 0:02:59.1]} 40... Rd5 {[%clk 0:02:55.7]} 41. b7 {[%clk 0:02:51.6]}
41... Rd6+ {[%clk 0:02:50.5]} 42. Kc7 {[%clk 0:02:50.8]} 1-0

[Event "Live Chess"]
[Site "Chess.com"]
[Date "2023.05.21"]
[Round "-"]
[White "Crowded_House"]
[Black "MarkLim1"]
[Result "0-1"]
[WhiteElo "1635"]
[BlackElo "1706"]
[TimeControl "300"]
[EndTime "3:14:01 PDT"]
[Termination "MarkLim1 won by resignation"]

1. d4 {[%clk 0:04:59.3]} 1... Nf6 {[%clk 0:04:58.9]} 2. Bg5 {[%clk 0:04:58.7]}
2... e6 {[%clk 0:04:58]} 3. e3 {[%clk 0:04:57.6]} 3... c5 {[%clk 0:04:54.5]} 4.
c3 {[%clk 0:04:55.7]} 4... cxd4 {[%clk 0:04:53.6]} 5. exd4 {[%clk 0:04:53.8]}
5... h6 {[%clk 0:04:52.1]} 6. Bh4 {[%clk 0:04:52.3]} 6... Be7 {[%clk 0:04:50.5]}
7. Nd2 {[%clk 0:04:49.2]} 7... O-O {[%clk 0:04:49]} 8. Bd3 {[%clk 0:04:47.9]}
8... b6 {[%clk 0:04:48.2]} 9. Ngf3 {[%clk 0:04:46.4]} 9... Ba6 {[%clk
0:04:46.9]} 10. Bxa6 {[%clk 0:04:43]} 10... Nxa6 {[%clk 0:04:46.1]} 11. O-O
{[%clk 0:04:41.7]} 11... d5 {[%clk 0:04:45]} 12. Re1 {[%clk 0:04:40.5]} 12...
Rb8 {[%clk 0:04:43.6]} 13. Ne5 {[%clk 0:04:37.1]} 13... Qc8 {[%clk 0:04:42.1]}
14. Bg3 {[%clk 0:04:09.6]} 14... Qb7 {[%clk 0:04:39.3]} 15. Ng4 {[%clk
0:04:02.7]} 15... Rbc8 {[%clk 0:04:30.3]} 16. Nxf6+ {[%clk 0:04:01.6]} 16...
Bxf6 {[%clk 0:04:29.3]} 17. Nf3 {[%clk 0:03:59.2]} 17... b5 {[%clk 0:04:28.2]}
18. a3 {[%clk 0:03:57.2]} 18... Rc6 {[%clk 0:04:26.5]} 19. Be5 {[%clk
0:03:55.1]} 19... Be7 {[%clk 0:04:22.3]} 20. Bg3 {[%clk 0:03:42.4]} 20... Rfc8
{[%clk 0:04:21.5]} 21. Ne5 {[%clk 0:03:33.9]} 21... Rb6 {[%clk 0:04:16.2]} 22.
Qf3 {[%clk 0:03:32.5]} 22... Bf8 {[%clk 0:04:14.9]} 23. Qh5 {[%clk 0:03:19.3]}
23... Nb8 {[%clk 0:04:10.9]} 24. Ng4 {[%clk 0:03:13]} 24... Nc6 {[%clk
0:04:07.2]} 25. Ne5 {[%clk 0:03:05.9]} 25... Nxe5 {[%clk 0:04:04.7]} 26. Bxe5
{[%clk 0:03:04.5]} 26... a5 {[%clk 0:04:02.7]} 27. Re3 {[%clk 0:03:00.2]} 27...
b4 {[%clk 0:04:01.7]} 28. cxb4 {[%clk 0:02:57.1]} 28... axb4 {[%clk 0:04:00.7]}
29. axb4 {[%clk 0:02:55.2]} 29... Rxb4 {[%clk 0:03:58.9]} 30. Rh3 {[%clk
0:02:52.2]} 30... Rxb2 {[%clk 0:03:56.4]} 31. Rf1 {[%clk 0:02:31.6]} 31... Rb1
{[%clk 0:03:54.6]} 32. Rg3 {[%clk 0:02:19.9]} 32... Rxf1+ {[%clk 0:03:52.2]} 33.
Kxf1 {[%clk 0:02:19.3]} 33... Qb1+ {[%clk 0:03:50.8]} 34. Ke2 {[%clk 0:02:18.4]}
34... Rc2+ {[%clk 0:03:48.2]} 35. Ke3 {[%clk 0:02:06]} 35... Qc1+ {[%clk
0:03:45]} 36. Kf3 {[%clk 0:01:52.5]} 36... Qd1+ {[%clk 0:03:43]} 37. Kf4 {[%clk
0:01:50.6]} 37... Qxh5 {[%clk 0:03:41.7]} 0-1

[Event "Live Chess"]
[Site "Chess.com"]
[Date "2023.05.21"]
[Round "-"]
[White "JanMur7"]
[Black "LiamClery2020"]
[Result "0-1"]
[WhiteElo "1955"]
[BlackElo "2000"]
[TimeControl "300"]
[EndTime "3:14:03 PDT"]
[Termination "LiamClery2020 won by resignation"]

1. e4 {[%clk 0:04:58.6]} 1... Nf6 {[%clk 0:04:56.3]} 2. Nc3 {[%clk 0:04:57.1]}
2... e5 {[%clk 0:04:54.5]} 3. Nf3 {[%clk 0:04:55.1]} 3... Nc6 {[%clk 0:04:52.9]}
4. Nxe5 {[%clk 0:04:53.3]} 4... Nxe5 {[%clk 0:04:51.8]} 5. d4 {[%clk 0:04:52.7]}
5... Ng6 {[%clk 0:04:50.9]} 6. e5 {[%clk 0:04:52.4]} 6... Ng8 {[%clk 0:04:49.4]}
7. Bc4 {[%clk 0:04:52.1]} 7... d5 {[%clk 0:04:47.5]} 8. Bxd5 {[%clk 0:04:50.5]}
8... N8e7 {[%clk 0:04:43.2]} 9. Bb3 {[%clk 0:04:47.5]} 9... Be6 {[%clk
0:04:41.8]} 10. Qf3 {[%clk 0:04:40.1]} 10... c6 {[%clk 0:04:38.7]} 11. Bg5
{[%clk 0:04:31.2]} 11... Qxd4 {[%clk 0:04:36.1]} 12. O-O {[%clk 0:04:30.3]}
12... Qxe5 {[%clk 0:04:32.2]} 13. Bxe7 {[%clk 0:04:28.1]} 13... Bxe7 {[%clk
0:04:29.7]} 14. Rfe1 {[%clk 0:04:27.7]} 14... Qg5 {[%clk 0:04:21.5]} 15. Bxe6
{[%clk 0:04:24.5]} 15... fxe6 {[%clk 0:04:18.1]} 16. Rxe6 {[%clk 0:04:23.6]}
16... O-O-O {[%clk 0:04:11.7]} 17. Rae1 {[%clk 0:04:14.5]} 17... Rhf8 {[%clk
0:04:01]} 18. Qe2 {[%clk 0:04:07.7]} 18... Nf4 {[%clk 0:03:55.8]} 0-1

[Event "Live Chess"]
[Site "Chess.com"]
[Date "2023.05.21"]
[Round "-"]
[White "ItsNot_Jasper"]
[Black "Biranidun"]
[Result "0-1"]
[WhiteElo "1373"]
[BlackElo "2540"]
[TimeControl "300"]
[EndTime "3:14:14 PDT"]
[Termination "Biranidun won by resignation"]

1. d4 {[%clk 0:04:58.2]} 1... Nf6 {[%clk 0:04:59]} 2. c4 {[%clk 0:04:57.3]} 2...
g6 {[%clk 0:04:58.4]} 3. Nc3 {[%clk 0:04:56.3]} 3... Bg7 {[%clk 0:04:58]} 4. e4
{[%clk 0:04:54.8]} 4... d6 {[%clk 0:04:57.5]} 5. f4 {[%clk 0:04:53.8]} 5... c5
{[%clk 0:04:56]} 6. d5 {[%clk 0:04:51.5]} 6... O-O {[%clk 0:04:54.7]} 7. Nf3
{[%clk 0:04:38.2]} 7... e6 {[%clk 0:04:53.8]} 8. dxe6 {[%clk 0:04:36]} 8... Bxe6
{[%clk 0:04:51.3]} 9. Be2 {[%clk 0:04:33.6]} 9... Nc6 {[%clk 0:04:50]} 10. O-O
{[%clk 0:04:31.6]} 10... Bg4 {[%clk 0:04:48.8]} 11. h3 {[%clk 0:04:29.7]} 11...
Bxf3 {[%clk 0:04:48]} 12. Bxf3 {[%clk 0:04:29.3]} 12... Nd4 {[%clk 0:04:43]} 13.
Bd2 {[%clk 0:04:18.5]} 13... Re8 {[%clk 0:04:41.4]} 14. f5 {[%clk 0:04:11.3]}
14... Rb8 {[%clk 0:04:32.1]} 15. fxg6 {[%clk 0:04:08.4]} 15... fxg6 {[%clk
0:04:26.2]} 16. Rc1 {[%clk 0:04:02.1]} 16... Nd7 {[%clk 0:04:23.9]} 17. Be3
{[%clk 0:03:55.4]} 17... Ne5 {[%clk 0:04:19.9]} 18. Bxd4 {[%clk 0:03:52.5]}
18... cxd4 {[%clk 0:04:19.3]} 19. Nd5 {[%clk 0:03:50.4]} 19... Rf8 {[%clk
0:04:15.8]} 20. b3 {[%clk 0:03:40.1]} 20... Qg5 {[%clk 0:04:12.7]} 21. Rc2
{[%clk 0:03:36]} 21... Rf7 {[%clk 0:04:06.6]} 22. Rcf2 {[%clk 0:03:32.8]} 22...
Rbf8 {[%clk 0:04:05.5]} 23. Bg4 {[%clk 0:03:27.3]} 23... Rxf2 {[%clk 0:04:02.9]}
24. Rxf2 {[%clk 0:03:26.5]} 24... Rxf2 {[%clk 0:04:02.4]} 25. Kxf2 {[%clk
0:03:24.8]} 25... d3 {[%clk 0:03:57.7]} 26. Be6+ {[%clk 0:03:19.5]} 26... Kh8
{[%clk 0:03:55.5]} 27. g3 {[%clk 0:03:12.8]} 27... a6 {[%clk 0:03:39.3]} 28. h4
{[%clk 0:03:08.6]} 28... Qd8 {[%clk 0:03:37.7]} 29. a4 {[%clk 0:03:04.5]} 29...
Qf8+ {[%clk 0:03:33.3]} 30. Kg2 {[%clk 0:03:02.4]} 30... Bh6 {[%clk 0:03:30.9]}
31. Qf1 {[%clk 0:02:55.4]} 31... d2 {[%clk 0:03:26.4]} 32. Qxf8+ {[%clk
0:02:53.5]} 32... Bxf8 {[%clk 0:03:26.3]} 33. Ne3 {[%clk 0:02:46.4]} 33... Nd3
{[%clk 0:03:19.7]} 34. Bg4 {[%clk 0:02:39.2]} 34... Nc5 {[%clk 0:03:13.6]} 35.
Bd1 {[%clk 0:02:33.7]} 35... Nxe4 {[%clk 0:03:12.3]} 36. Kf3 {[%clk 0:02:30.5]}
36... Nc3 {[%clk 0:03:10.9]} 37. Bc2 {[%clk 0:02:21.4]} 37... Bh6 {[%clk
0:03:09.5]} 38. Nd1 {[%clk 0:02:19.1]} 38... Na2 {[%clk 0:03:01.1]} 39. g4
{[%clk 0:02:18.3]} 39... b6 {[%clk 0:02:45.5]} 40. g5 {[%clk 0:02:16.5]} 40...
Bg7 {[%clk 0:02:44.7]} 41. Ke2 {[%clk 0:02:12]} 41... Be5 {[%clk 0:02:43.9]} 42.
Kxd2 {[%clk 0:02:06.3]} 42... Nb4 {[%clk 0:02:41]} 43. Be4 {[%clk 0:01:56.9]}
43... Bg3 {[%clk 0:02:39.8]} 44. h5 {[%clk 0:01:53.9]} 44... gxh5 {[%clk
0:02:38.8]} 45. Ke3 {[%clk 0:01:52.7]} 45... Kg7 {[%clk 0:02:36.7]} 46. Kf3
{[%clk 0:01:48.9]} 46... Be5 {[%clk 0:02:34.1]} 47. Nf2 {[%clk 0:01:46.2]} 47...
a5 {[%clk 0:02:24.5]} 48. Nd3 {[%clk 0:01:42.2]} 48... Na2 {[%clk 0:02:23.1]}
49. Nxe5 {[%clk 0:01:36.9]} 49... dxe5 {[%clk 0:02:23]} 50. Kg3 {[%clk
0:01:33.9]} 50... Nc1 {[%clk 0:02:17.8]} 51. b4 {[%clk 0:01:23.7]} 51... Ne2+
{[%clk 0:01:35.5]} 52. Kh4 {[%clk 0:01:19]} 52... Nc3 {[%clk 0:01:34.3]} 53. Bc2
{[%clk 0:00:59.4]} 53... axb4 {[%clk 0:01:32.2]} 54. Kxh5 {[%clk 0:00:57.8]}
54... e4 {[%clk 0:01:29.2]} 55. Kg4 {[%clk 0:00:55.6]} 55... e3 {[%clk
0:01:26.7]} 56. Kf3 {[%clk 0:00:53.7]} 56... e2 {[%clk 0:01:25.9]} 57. Kf2
{[%clk 0:00:52.5]} 57... h5 {[%clk 0:01:22.4]} 58. gxh6+ {[%clk 0:00:50.4]}
58... Kxh6 {[%clk 0:01:21.9]} 59. Ke1 {[%clk 0:00:47.7]} 59... Kg5 {[%clk
0:01:21.2]} 60. Kf2 {[%clk 0:00:47]} 60... Kf4 {[%clk 0:01:20.5]} 61. Ke1 {[%clk
0:00:41.5]} 61... Ke3 {[%clk 0:01:18.5]} 62. Bb3 {[%clk 0:00:38.5]} 62... Kd3
{[%clk 0:01:13.2]} 63. Kf2 {[%clk 0:00:33.9]} 63... Kd2 {[%clk 0:01:12]} 0-1

[Event "Live Chess"]
[Site "Chess.com"]
[Date "2023.05.21"]
[Round "-"]
[White "Pandreq"]
[Black "diana21strabt"]
[Result "0-1"]
[WhiteElo "1229"]
[BlackElo "1721"]
[TimeControl "300"]
[EndTime "3:14:36 PDT"]
[Termination "diana21strabt won by resignation"]

1. d4 {[%clk 0:04:56.4]} 1... Nf6 {[%clk 0:04:58.5]} 2. c4 {[%clk 0:04:55.3]}
2... g6 {[%clk 0:04:57.7]} 3. Nc3 {[%clk 0:04:54.3]} 3... Bg7 {[%clk 0:04:56.7]}
4. Bf4 {[%clk 0:04:52.7]} 4... e6 {[%clk 0:04:54.6]} 5. e3 {[%clk 0:04:52]} 5...
O-O {[%clk 0:04:51.7]} 6. e4 {[%clk 0:04:47.7]} 6... d5 {[%clk 0:04:47.6]} 7.
cxd5 {[%clk 0:04:45.6]} 7... exd5 {[%clk 0:04:46.6]} 8. e5 {[%clk 0:04:44.8]}
8... Ne4 {[%clk 0:04:43.5]} 9. Nxe4 {[%clk 0:04:42.2]} 9... dxe4 {[%clk
0:04:42.4]} 10. Ne2 {[%clk 0:04:38.5]} 10... Nc6 {[%clk 0:04:40.1]} 11. Be3
{[%clk 0:04:28]} 11... f5 {[%clk 0:04:22.1]} 12. Nc3 {[%clk 0:04:23.3]} 12...
Nb4 {[%clk 0:04:13.8]} 13. a3 {[%clk 0:04:16.4]} 13... Nd5 {[%clk 0:04:08.6]}
14. Bc4 {[%clk 0:04:11.6]} 14... c6 {[%clk 0:04:07.1]} 15. Qb3 {[%clk
0:04:07.2]} 15... Be6 {[%clk 0:04:03.2]} 16. Rc1 {[%clk 0:03:50.9]} 16... Rb8
{[%clk 0:03:42.6]} 17. O-O {[%clk 0:03:42.8]} 17... Re8 {[%clk 0:03:32.5]} 18.
Rfd1 {[%clk 0:03:36.4]} 18... Kh8 {[%clk 0:03:25.2]} 19. Nxd5 {[%clk 0:03:30.8]}
19... Bxd5 {[%clk 0:03:22.5]} 20. Bxd5 {[%clk 0:03:21.9]} 20... Qxd5 {[%clk
0:03:21.2]} 21. Qxd5 {[%clk 0:03:17.6]} 21... cxd5 {[%clk 0:03:20.2]} 22. Rc7
{[%clk 0:03:16.4]} 22... Rec8 {[%clk 0:03:19.1]} 23. Rdc1 {[%clk 0:03:14.3]}
23... Rxc7 {[%clk 0:03:16.8]} 24. Rxc7 {[%clk 0:03:13]} 24... Kg8 {[%clk
0:03:12.8]} 25. Bf4 {[%clk 0:03:11]} 25... a6 {[%clk 0:03:05.7]} 26. e6 {[%clk
0:03:05]} 26... Bxd4 {[%clk 0:03:02.3]} 27. e7 {[%clk 0:02:51.5]} 27... Kf7
{[%clk 0:02:53.3]} 28. Rd7 {[%clk 0:02:31.6]} 28... Ke8 {[%clk 0:02:45]} 29.
Rxd5 {[%clk 0:02:10.8]} 29... Rc8 {[%clk 0:02:36.4]} 30. Rxd4 {[%clk 0:02:02.2]}
30... Kxe7 {[%clk 0:02:35]} 31. g3 {[%clk 0:01:46.6]} 31... Rc2 {[%clk
0:02:24.8]} 32. Rd2 {[%clk 0:01:45.3]} 32... Rc6 {[%clk 0:02:16.9]} 33. Kf1
{[%clk 0:01:41.5]} 33... Ke6 {[%clk 0:02:14.6]} 34. Ke2 {[%clk 0:01:39.6]} 34...
Rb6 {[%clk 0:02:08.3]} 35. f3 {[%clk 0:01:36.6]} 35... exf3+ {[%clk 0:02:05.9]}
36. Kxf3 {[%clk 0:01:35.5]} 36... Rb3+ {[%clk 0:02:05.2]} 37. Kf2 {[%clk
0:01:33.5]} 37... Kf6 {[%clk 0:02:03.5]} 38. Be3 {[%clk 0:01:26.1]} 38... g5
{[%clk 0:02:00.3]} 39. h3 {[%clk 0:01:21.9]} 39... h5 {[%clk 0:01:58.6]} 40. Ke2
{[%clk 0:01:15.5]} 40... Ke5 {[%clk 0:01:51.4]} 41. h4 {[%clk 0:01:12.4]} 41...
gxh4 {[%clk 0:01:48.9]} 42. Bf4+ {[%clk 0:01:08.2]} 42... Ke4 {[%clk 0:01:46.7]}
43. Bd6 {[%clk 0:00:45.5]} 43... hxg3 {[%clk 0:01:43.7]} 44. Bc5 {[%clk
0:00:39.4]} 44... f4 {[%clk 0:01:40]} 45. Rd4+ {[%clk 0:00:35.7]} 45... Ke5
{[%clk 0:01:36.9]} 46. Bb4 {[%clk 0:00:29.4]} 46... Kxd4 {[%clk 0:01:34.1]} 47.
Bc3+ {[%clk 0:00:26]} 47... Rxc3 {[%clk 0:01:33]} 48. bxc3+ {[%clk 0:00:24.4]}
48... Kxc3 {[%clk 0:01:32.3]} 0-1

[Event "Live Chess"]
[Site "Chess.com"]
[Date "2023.05.21"]
[Round "-"]
[White "hopton5"]
[Black "chessfiction"]
[Result "0-1"]
[WhiteElo "1038"]
[BlackElo "2319"]
[TimeControl "300"]
[EndTime "3:14:37 PDT"]
[Termination "chessfiction won by resignation"]

1. e4 {[%clk 0:04:57]} 1... d5 {[%clk 0:04:59.1]} 2. exd5 {[%clk 0:04:55.5]}
2... c6 {[%clk 0:04:58.1]} 3. dxc6 {[%clk 0:04:53.1]} 3... e5 {[%clk 0:04:56.3]}
4. Nc3 {[%clk 0:04:50.7]} 4... Bc5 {[%clk 0:04:55.2]} 5. Nf3 {[%clk 0:04:46.3]}
5... Nf6 {[%clk 0:04:52.3]} 6. Bb5 {[%clk 0:04:44.3]} 6... O-O {[%clk
0:04:50.7]} 7. O-O {[%clk 0:04:40.2]} 7... e4 {[%clk 0:04:49.4]} 8. Ne5 {[%clk
0:04:35.5]} 8... bxc6 {[%clk 0:04:42.7]} 9. Nxc6 {[%clk 0:04:32.7]} 9... Nxc6
{[%clk 0:04:41.6]} 10. Bxc6 {[%clk 0:04:31.3]} 10... Bg4 {[%clk 0:04:40.8]} 11.
Qe1 {[%clk 0:04:24.3]} 11... Rc8 {[%clk 0:04:36.9]} 12. Bxe4 {[%clk 0:04:21.4]}
12... Re8 {[%clk 0:04:35.5]} 13. d3 {[%clk 0:04:09.9]} 13... Qd6 {[%clk
0:04:31.9]} 14. Bg5 {[%clk 0:04:00.7]} 14... Bb6 {[%clk 0:04:26.4]} 15. a4
{[%clk 0:03:47.6]} 15... Bc7 {[%clk 0:04:22.6]} 16. g3 {[%clk 0:03:41.5]} 16...
Ba5 {[%clk 0:04:13.5]} 17. Bf4 {[%clk 0:03:37.5]} 17... Qc5 {[%clk 0:04:06.8]}
18. Be3 {[%clk 0:03:27.1]} 18... Qh5 {[%clk 0:04:04.5]} 19. f3 {[%clk
0:03:04.1]} 19... Bh3 {[%clk 0:03:51.2]} 20. Rf2 {[%clk 0:03:01.4]} 20... Nxe4
{[%clk 0:03:40.7]} 21. dxe4 {[%clk 0:02:59.4]} 21... Be6 {[%clk 0:03:36.1]} 22.
Qe2 {[%clk 0:02:48.6]} 22... Rb8 {[%clk 0:03:32]} 23. Kg2 {[%clk 0:02:20]} 23...
Rxb2 {[%clk 0:03:27.2]} 24. Rb1 {[%clk 0:02:07.6]} 24... Bxc3 {[%clk 0:03:22.7]}
25. Rxb2 {[%clk 0:02:05]} 25... Bxb2 {[%clk 0:03:22.6]} 26. g4 {[%clk
0:01:56.1]} 26... Qe5 {[%clk 0:03:16.4]} 27. Qa6 {[%clk 0:01:43.1]} 27... Bd4
{[%clk 0:03:09.4]} 28. Bxd4 {[%clk 0:01:28.9]} 28... Qxd4 {[%clk 0:03:06.1]} 29.
Qc6 {[%clk 0:01:22.3]} 29... Rc8 {[%clk 0:03:01.6]} 30. Qb7 {[%clk 0:01:15.2]}
30... Qb6 {[%clk 0:02:53.8]} 31. Qe7 {[%clk 0:01:10.6]} 31... h6 {[%clk
0:02:50.3]} 32. Rd2 {[%clk 0:00:57.7]} 32... Qc7 {[%clk 0:02:45.5]} 33. c4
{[%clk 0:00:46.2]} 33... Qxe7 {[%clk 0:02:43]} 34. c5 {[%clk 0:00:42.8]} 34...
Qxc5 {[%clk 0:02:41.1]} 35. Rb2 {[%clk 0:00:39]} 35... Qe3 {[%clk 0:02:40]} 36.
Rb4 {[%clk 0:00:34]} 36... Rc2+ {[%clk 0:02:38.7]} 0-1

[Event "Live Chess"]
[Site "Chess.com"]
[Date "2023.05.21"]
[Round "-"]
[White "Keithdfg"]
[Black "WelshTiger"]
[Result "0-1"]
[WhiteElo "1600"]
[BlackElo "2348"]
[TimeControl "300"]
[EndTime "3:14:49 PDT"]
[Termination "WelshTiger won by resignation"]

1. Nf3 {[%clk 0:04:55.8]} 1... c5 {[%clk 0:04:58.7]} 2. c4 {[%clk 0:04:53.6]}
2... Nf6 {[%clk 0:04:55.9]} 3. Nc3 {[%clk 0:04:53.3]} 3... d5 {[%clk 0:04:55.3]}
4. cxd5 {[%clk 0:04:52.4]} 4... Nxd5 {[%clk 0:04:55.2]} 5. g3 {[%clk 0:04:51.6]}
5... Nc6 {[%clk 0:04:53.6]} 6. Bg2 {[%clk 0:04:50.9]} 6... Nc7 {[%clk
0:04:52.9]} 7. O-O {[%clk 0:04:49]} 7... e5 {[%clk 0:04:51.8]} 8. d3 {[%clk
0:04:48.9]} 8... Be7 {[%clk 0:04:48.3]} 9. a3 {[%clk 0:04:48.8]} 9... O-O {[%clk
0:04:42.7]} 10. Rb1 {[%clk 0:04:48.7]} 10... a5 {[%clk 0:04:41.5]} 11. Nd2
{[%clk 0:04:45.7]} 11... Bd7 {[%clk 0:04:32.9]} 12. Nc4 {[%clk 0:04:43.9]} 12...
Ne6 {[%clk 0:04:20.3]} 13. Bxc6 {[%clk 0:04:40.1]} 13... Bxc6 {[%clk 0:04:19.7]}
14. Nxe5 {[%clk 0:04:39.5]} 14... Be8 {[%clk 0:04:19]} 15. a4 {[%clk 0:04:33]}
15... Nd4 {[%clk 0:04:15]} 16. Nc4 {[%clk 0:04:26.1]} 16... Bc6 {[%clk
0:04:08.5]} 17. Be3 {[%clk 0:04:24.5]} 17... Qc8 {[%clk 0:04:04.1]} 18. f3
{[%clk 0:04:22.2]} 18... Qe6 {[%clk 0:04:01.4]} 19. Bxd4 {[%clk 0:04:17.7]}
19... cxd4 {[%clk 0:04:01.3]} 20. Ne4 {[%clk 0:04:13.8]} 20... f5 {[%clk
0:04:00.3]} 21. Ned2 {[%clk 0:04:08.9]} 21... Bb4 {[%clk 0:03:59.4]} 22. Rf2
{[%clk 0:04:06.7]} 22... Rae8 {[%clk 0:03:55.2]} 23. b3 {[%clk 0:04:04.9]} 23...
h5 {[%clk 0:03:44.5]} 24. f4 {[%clk 0:04:02]} 24... Qd5 {[%clk 0:03:39]} 25. Nf3
{[%clk 0:04:00.5]} 25... h4 {[%clk 0:03:29.3]} 26. Nce5 {[%clk 0:03:56.7]} 26...
hxg3 {[%clk 0:03:26.5]} 27. hxg3 {[%clk 0:03:53.9]} 27... Re6 {[%clk 0:03:17.5]}
28. Qf1 {[%clk 0:03:43.2]} 28... Bd2 {[%clk 0:03:10.8]} 29. Qh3 {[%clk 0:03:34]}
29... Be3 {[%clk 0:03:08.4]} 30. Nh4 {[%clk 0:03:17.8]} 30... Rh6 {[%clk
0:03:01.9]} 31. Kf1 {[%clk 0:03:15.9]} 31... Bxf2 {[%clk 0:03:00.9]} 32. Kxf2
{[%clk 0:03:14.5]} 32... Qe6 {[%clk 0:02:39.4]} 0-1